fUST/lending_fUST_20260613
["ID","MTS","AMOUNT","RATE_DAILY","PERIOD"]
[424938208,1781303441000,-1752.55684774,0.000278,2]
[424938189,1781303441000,-160.0,0.00026967,2]
[424938214,1781303441000,-602.10131671,0.000281,2]
[424938206,1781303441000,-602.10131671,0.000278,2]
[424938216,1781303441000,-1752.55684774,0.000281,2]
[424938228,1781303441000,-510.71739599,0.000297,2]
[424938222,1781303441000,-250.44184405,0.00029671,2]
[424938223,1781303441000,-3055.55216647,0.000297,2]
[424938218,1781303441000,-3448.4978971,0.00028734,120]
[424938226,1781303441000,-558.0,0.000297,2]
[424938201,1781303441000,-1752.55684774,0.000275,2]
[424938203,1781303441000,-161.68324932,0.00027799,2]
[424938205,1781303441000,-278.56784212,0.00027799,2]
[424938199,1781303441000,-602.10131671,0.000275,2]
[424938220,1781303441000,-161.0,0.0002926,33]
[424938424,1781303443000,-95.66916131,0.00032776,2]
[424938430,1781303443000,-500.0,0.00032776,2]
[424938429,1781303443000,-500.0,0.00032776,2]
[424938425,1781303443000,-404.33083869,0.00032776,2]
[424938422,1781303443000,-6103.53822192,0.000314,2]
[424938428,1781303443000,-500.0,0.00032776,2]
[424938423,1781303443000,-727.63588428,0.00031579,2]
[424938421,1781303443000,-1206.72448644,0.000314,2]
[424938427,1781303443000,-500.0,0.00032776,2]
[424938415,1781303443000,-1397.90907199,0.000297,2]
[424938426,1781303443000,-404.8497188,0.00032776,2]
[424938418,1781303443000,-54.56259402,0.00030622,2]
[424938419,1781303443000,-1208.61533061,0.00030622,2]
[424938417,1781303443000,-131.43740598,0.00030622,2]
[424938409,1781303443000,-615.908,0.000297,2]
[424938416,1781303443000,-380.0,0.00029961,2]
[424938411,1781303443000,-1172.17607391,0.000297,2]
[424938432,1781303443000,-500.0,0.00032776,2]
[424938420,1781303443000,-626.38466939,0.00030622,2]
[424938433,1781303443000,-500.0,0.00032776,2]
[424938441,1781303443000,-96.97079597,0.00032776,2]
[424938435,1781303443000,-500.0,0.00032776,2]
[424938450,1781303443000,-500.0,0.00032776,2]
[424938449,1781303443000,-500.0,0.00032776,2]
[424938448,1781303443000,-500.0,0.00032776,2]
[424938447,1781303443000,-500.0,0.00032776,2]
[424938451,1781303443000,-500.0,0.00032776,2]
[424938445,1781303443000,-500.0,0.00032776,2]
[424938443,1781303443000,-500.0,0.00032776,2]
[424938454,1781303443000,-9555.03207621,0.00032777,2]
[424938453,1781303443000,-552.47267203,0.00032776,2]
[424938446,1781303443000,-500.0,0.00032776,2]
[424938444,1781303443000,-500.0,0.00032776,2]
[424938452,1781303443000,-500.0,0.00032776,2]
[424938442,1781303443000,-403.02920403,0.00032776,2]
[424938440,1781303443000,-500.0,0.00032776,2]
[424938438,1781303443000,-401.27079597,0.00032776,2]
[424938439,1781303443000,-98.72920403,0.00032776,2]
[424938437,1781303443000,-219.24042785,0.00032776,2]
[424938436,1781303443000,-280.75957215,0.00032776,2]
[424938431,1781303443000,-500.0,0.00032776,2]
[424938434,1781303443000,-500.0,0.00032776,2]
[424938471,1781303446000,-809.71117218,0.00025773,9]
[424938473,1781303446000,-221133.75637857,0.00032777,2]
[424938472,1781303446000,-2617.07948091,0.00025773,9]
[424938474,1781303446000,-978.61104329,0.00032777,2]
[424938475,1781303447000,-670.22,0.00032777,2]
[424938483,1781303586000,-168.03075301,0.00024319,2]
[424938526,1781304167000,1000.0,0.00023435,30]
[424938567,1781304632000,-197.09584553,0.00023467,2]
[424938569,1781304632000,-165.07166946,0.00023467,2]
[424938566,1781304632000,-157.70876571,0.00023467,2]
[424938563,1781304632000,-195.35858763,0.00023467,2]
[424938565,1781304632000,-154.28350078,0.00023467,2]
[424938561,1781304632000,-164.98951301,0.00023467,2]
[424938564,1781304632000,-165.0660082,0.00023467,2]
[424938562,1781304632000,-163.99811221,0.00023467,2]
[424938570,1781304632000,-156.68799919,0.00023467,2]
[424938558,1781304632000,-370.09191692,0.00022317,9]
[424938557,1781304632000,-4629.90808308,0.00022317,9]
[424938560,1781304632000,-173.93216638,0.00023467,2]
[424938568,1781304632000,-160.1543215,0.00023467,2]
[424938559,1781304632000,-197.29091282,0.00023467,2]
[424938575,1781304632000,-209.25400709,0.00023467,2]
[424938571,1781304632000,-185.52799219,0.00023467,2]
[424938585,1781304632000,-119.41334065,0.00023637,2]
[424938584,1781304632000,-227.410878,0.00023581,2]
[424938583,1781304632000,-211.42,0.00023562,2]
[424938580,1781304632000,-200.75310088,0.00023489,2]
[424938582,1781304632000,-192.06665704,0.00023489,2]
[424938581,1781304632000,-175.36187111,0.00023489,2]
[424938574,1781304632000,-191.53722282,0.00023467,2]
[424938577,1781304632000,-197.86721844,0.00023467,2]
[424938579,1781304632000,-155.16025355,0.00023489,2]
[424938572,1781304632000,-185.59818824,0.00023467,2]
[424938576,1781304632000,-157.59772239,0.00023467,2]
[424938578,1781304632000,-160.78523118,0.00023489,2]
[424938573,1781304632000,-160.51699708,0.00023467,2]
[424938673,1781304639000,-5132.68486866,0.00024788,2]
[424938670,1781304639000,-211.42,0.00024384,2]
[424938672,1781304639000,-211.42,0.00024658,2]
[424938671,1781304639000,-500.0,0.00024593,2]
[424938688,1781304639000,-152.42402866,0.00024888,2]
[424938665,1781304639000,-321.57046237,0.00024343,2]
[424938666,1781304639000,-310.32050711,0.00024343,2]
[424938674,1781304639000,-300.0,0.00024805,10]
[424938669,1781304639000,-384.13331408,0.00024343,2]
[424938676,1781304639000,-300.0,0.00024805,10]
[424938680,1781304639000,-172.229,0.00024867,8]
[424938678,1781304639000,-300.0,0.00024805,10]
[424938679,1781304639000,-500.0,0.00024867,2]
[424938682,1781304639000,-178.95579326,0.00024888,2]
[424938677,1781304639000,-300.0,0.00024805,10]
[424938681,1781304639000,-150.307,0.00024867,8]
[424938668,1781304639000,-350.72374221,0.00024343,2]
[424938684,1781304639000,-337.16699263,0.00024888,2]
[424938683,1781304639000,-398.12550244,0.00024888,2]
[424938685,1781304639000,-313.37599839,0.00024888,2]
[424938689,1781304639000,-494.96853904,0.00024888,2]
[424938687,1781304639000,-521.79649913,0.00024888,2]
[424938675,1781304639000,-300.0,0.00024805,10]
[424938661,1781304639000,-180.10043388,0.00024319,2]
[424938656,1781304639000,-383.07444565,0.00024319,2]
[424938662,1781304639000,-153.56748717,0.00024319,2]
[424938638,1781304639000,-264.73570335,0.00023637,2]
[424938640,1781304639000,-211.42,0.00023836,2]
[424938639,1781304639000,-183.1585829,0.0002383,2]
[424938641,1781304639000,-211.42,0.0002411,2]
[424938642,1781304639000,-212.36,0.00024309,2]
[424938643,1781304639000,-347.86433275,0.00024319,2]
[424938646,1781304639000,-327.99622442,0.00024319,2]
[424938645,1781304639000,-329.97902603,0.00024319,2]
[424938644,1781304639000,-394.58182564,0.00024319,2]
[424938647,1781304639000,-390.71717526,0.00024319,2]
[424938648,1781304639000,-330.13201641,0.00024319,2]
[424938649,1781304639000,-308.56700156,0.00024319,2]
[424938651,1781304639000,-394.19169106,0.00024319,2]
[424938652,1781304639000,-330.14333892,0.00024319,2]
[424938650,1781304639000,-315.41753142,0.00024319,2]
[424938653,1781304639000,-174.63701329,0.00024319,2]
[424938655,1781304639000,-321.03399416,0.00024319,2]
[424938654,1781304639000,-371.19637649,0.00024319,2]
[424938658,1781304639000,-418.50801418,0.00024319,2]
[424938657,1781304639000,-176.3570704,0.00024319,2]
[424938659,1781304639000,-187.86345018,0.00024319,2]
[424938660,1781304639000,-315.19544477,0.00024319,2]
[424938664,1781304639000,-500.0,0.00024319,2]
[424938663,1781304639000,-395.73443688,0.00024319,2]
[424938691,1781304639000,-586.07576288,0.00024888,2]
[424938667,1781304639000,-401.50620176,0.00024343,2]
[424938686,1781304639000,-591.87273846,0.00024888,2]
[424938719,1781304639000,-526.08561332,0.00024912,2]
[424938720,1781304639000,-576.19997112,0.00024912,2]
[424938721,1781304639000,-200.4570103,0.00024912,2]
[424938722,1781304639000,-211.42,0.00024932,2]
[424938724,1781304639000,-500.0,0.00025141,2]
[424938723,1781304639000,-2696.94,0.00025,10]
[424938725,1781304639000,-211.42,0.00025205,2]
[424938726,1781304639000,-212.36,0.00025257,2]
[424938728,1781304639000,-597.18825366,0.00025267,2]
[424938727,1781304639000,-151.0,0.00025267,6]
[424938731,1781304639000,-695.72866551,0.00025267,2]
[424938730,1781304639000,-470.06399758,0.00025267,2]
[424938729,1781304639000,-505.75048894,0.00025267,2]
[424938733,1781304639000,-191.8391887,0.00025267,2]
[424938734,1781304639000,-304.84805731,0.00025267,2]
[424938735,1781304639000,-161.8887429,0.00025267,2]
[424938736,1781304639000,-183.76045056,0.00025267,2]
[424938737,1781304639000,-659.95805206,0.00025267,2]
[424938738,1781304639000,-655.99244884,0.00025267,2]
[424938740,1781304639000,-781.43435051,0.00025267,2]
[424938741,1781304639000,-570.89056334,0.00025267,2]
[424938739,1781304639000,-207.40917178,0.00025267,2]
[424938692,1781304639000,-285.44528167,0.00024888,2]
[424938716,1781304639000,-465.48076066,0.00024912,2]
[424938717,1781304639000,-602.25930264,0.00024912,2]
[424938732,1781304639000,-789.16365128,0.00025267,2]
[424938718,1781304639000,-207.94782336,0.00024912,2]
[424938714,1781304639000,-593.60165531,0.00024888,2]
[424938690,1781304639000,-491.99433663,0.00024888,2]
[424938693,1781304639000,-495.19802461,0.00024888,2]
[424938696,1781304639000,-357.91158652,0.00024888,2]
[424938697,1781304639000,-591.28753659,0.00024888,2]
[424938695,1781304639000,-473.12629712,0.00024888,2]
[424938698,1781304639000,-349.27402658,0.00024888,2]
[424938699,1781304639000,-495.21500839,0.00024888,2]
[424938700,1781304639000,-188.02006168,0.00024888,2]
[424938701,1781304639000,-556.79456473,0.00024888,2]
[424938705,1781304639000,-215.34330551,0.00024888,2]
[424938694,1781304639000,-462.85050233,0.00024888,2]
[424938702,1781304639000,-280.60504628,0.00024888,2]
[424938715,1781304639000,-482.35569355,0.00024912,2]
[424938704,1781304639000,-574.61166847,0.00024888,2]
[424938713,1781304639000,-150.19869908,0.00024888,2]
[424938712,1781304639000,-307.13497434,0.00024888,2]
[424938711,1781304639000,-360.20086775,0.00024888,2]
[424938708,1781304639000,-196.73957456,0.00024888,2]
[424938710,1781304639000,-472.79316716,0.00024888,2]
[424938709,1781304639000,-375.72690035,0.00024888,2]
[424938707,1781304639000,-627.76202127,0.00024888,2]
[424938706,1781304639000,-352.7141408,0.00024888,2]
[424938703,1781304639000,-481.55099124,0.00024888,2]
[424938776,1781304640000,-791.46887375,0.00025267,2]
[424938784,1781304640000,-415.89564673,0.00025291,2]
[424938789,1781304640000,-500.0,0.00025415,2]
[424938781,1781304640000,-803.01240352,0.00025291,2]
[424938786,1781304640000,-768.26662816,0.00025291,2]
[424938782,1781304640000,-398.27241995,0.00025291,2]
[424938780,1781304640000,-620.64101421,0.00025291,2]
[424938779,1781304640000,-643.14092474,0.00025291,2]
[424938777,1781304640000,-215.46,0.00025291,2]
[424938778,1781304640000,-215.46,0.00025291,2]
[424938785,1781304640000,-266.46547779,0.00025291,2]
[424938775,1781304640000,-189.01373693,0.00025267,2]
[424938783,1781304640000,-701.44748442,0.00025291,2]
[424938788,1781304640000,-326.58781297,0.00025291,2]
[424938804,1781304640000,-824.94756507,0.00025646,2]
[424938791,1781304640000,-869.66083188,0.00025646,2]
[424938794,1781304640000,-825.33004102,0.00025646,2]
[424938790,1781304640000,-211.42,0.00025479,2]
[424938792,1781304640000,-986.4545641,0.00025646,2]
[424938796,1781304640000,-788.54382854,0.00025646,2]
[424938795,1781304640000,-771.41750389,0.00025646,2]
[424938798,1781304640000,-985.47922765,0.00025646,2]
[424938793,1781304640000,-819.99056105,0.00025646,2]
[424938800,1781304640000,-800.77160749,0.00025646,2]
[424938802,1781304640000,-802.58498541,0.00025646,2]
[424938803,1781304640000,-957.68611411,0.00025646,2]
[424938801,1781304640000,-927.63996094,0.00025646,2]
[424938805,1781304640000,-976.79293814,0.00025646,2]
[424938774,1781304640000,-162.95364803,0.00025267,2]
[424938787,1781304640000,-400.91402059,0.00025291,2]
[424938773,1781304640000,-300.39739817,0.00025267,2]
[424938748,1781304640000,-640.61728599,0.00025267,2]
[424938768,1781304640000,-630.39088954,0.00025267,2]
[424938743,1781304640000,-660.26403282,0.00025267,2]
[424938745,1781304640000,-536.86737978,0.00025267,2]
[424938742,1781304640000,-617.13400311,0.00025267,2]
[424938744,1781304640000,-630.83506283,0.00025267,2]
[424938746,1781304640000,-788.38338212,0.00025267,2]
[424938807,1781304640000,-876.80935553,0.0002567,2]
[424938747,1781304640000,-303.50406284,0.00025267,2]
[424938750,1781304640000,-626.75199677,0.00025267,2]
[424938749,1781304640000,-378.65450528,0.00025267,2]
[424938753,1781304640000,-742.11196875,0.00025267,2]
[424938756,1781304640000,-155.74683178,0.00025267,2]
[424938758,1781304640000,-561.21009256,0.00025267,2]
[424938752,1781304640000,-440.84211616,0.00025267,2]
[424938755,1781304640000,-313.07944234,0.00025267,2]
[424938757,1781304640000,-197.82759369,0.00025267,2]
[424938751,1781304640000,-523.91103987,0.00025267,2]
[424938754,1781304640000,-742.39275297,0.00025267,2]
[424938759,1781304640000,-642.06798833,0.00025267,2]
[424938760,1781304640000,-766.14889129,0.00025267,2]
[424938762,1781304640000,-430.68661101,0.00025267,2]
[424938761,1781304640000,-213.85248148,0.00025267,2]
[424938763,1781304640000,-529.07121121,0.00025267,2]
[424938764,1781304640000,-837.01602836,0.00025267,2]
[424938765,1781304640000,-563.59035053,0.00025267,2]
[424938766,1781304640000,-393.47914913,0.00025267,2]
[424938769,1781304640000,-540.30130163,0.00025267,2]
[424938770,1781304640000,-660.28667785,0.00025267,2]
[424938767,1781304640000,-376.04012336,0.00025267,2]
[424938771,1781304640000,-176.60128624,0.00025267,2]
[424938772,1781304640000,-460.70246151,0.00025267,2]
[424938806,1781304640000,-1003.76550439,0.0002567,2]
[424938842,1781304640000,-1298.69594532,0.00027067,2]
[424938812,1781304640000,-529.382794,0.00026166,2]
[424938845,1781304640000,-769.21259721,0.00027397,2]
[424938847,1781304640000,-321.68105337,0.000274,2]
[424938846,1781304640000,-211.42,0.00027397,2]
[424938848,1781304640000,-1413.80167445,0.000274,2]
[424938851,1781304640000,-1413.80167445,0.000277,2]
[424938850,1781304640000,-321.68105337,0.000277,2]
[424938849,1781304640000,-190.34962631,0.000274,2]
[424938852,1781304640000,-321.68105337,0.000279,2]
[424938853,1781304640000,-1413.80167445,0.000279,2]
[424938855,1781304640000,-1413.80167445,0.000282,2]
[424938854,1781304640000,-321.68105337,0.000282,2]
[424938856,1781304640000,-1311.98489768,0.00028346,2]
[424938857,1781304640000,-1281.23457198,0.00028346,2]
[424938860,1781304640000,-321.68105337,0.000285,2]
[424938859,1781304640000,-529.382794,0.00028369,2]
[424938862,1781304640000,-185.67369648,0.00028667,2]
[424938864,1781304640000,-164.7,0.0002898,2]
[424938858,1781304640000,-1484.2239375,0.00028346,2]
[424938863,1781304640000,-1413.80167445,0.000288,2]
[424938865,1781304640000,-153.37,0.00029024,3]
[424938867,1781304640000,-5132.68486864,0.00029106,2]
[424938868,1781304640000,-153.51,0.00029233,2]
[424938869,1781304640000,-165.25,0.00029233,2]
[424938870,1781304640000,-1413.80167445,0.000294,2]
[424938866,1781304640000,-1413.80167445,0.000291,2]
[424938872,1781304640000,-1413.80167445,0.000297,2]
[424938871,1781304640000,-529.382794,0.00029471,2]
[424938808,1781304640000,-960.3332852,0.0002567,2]
[424938873,1781304640000,-1413.80167445,0.0003,2]
[424938844,1781304640000,-529.382794,0.00027268,2]
[424938843,1781304640000,-211.42,0.00027123,2]
[424938861,1781304640000,-1413.80167445,0.000285,2]
[424938819,1781304640000,-1113.16795313,0.00026214,2]
[424938809,1781304640000,-787.98861193,0.0002567,2]
[424938840,1781304640000,-1147.98678547,0.00027067,2]
[424938810,1781304640000,-211.42,0.00025753,2]
[424938813,1781304640000,-185.67369651,0.00026201,2]
[424938814,1781304640000,-1043.59299826,0.00026214,2]
[424938816,1781304640000,-925.70100467,0.00026214,2]
[424938815,1781304640000,-983.98867326,0.00026214,2]
[424938818,1781304640000,-960.92592899,0.00026214,2]
[424938817,1781304640000,-946.25259425,0.00026214,2]
[424938820,1781304640000,-211.42,0.00026301,2]
[424938821,1781304640000,-211.42,0.00026575,2]
[424938824,1781304640000,-500.0,0.00027056,2]
[424938822,1781304640000,-211.42,0.00026849,2]
[424938825,1781304640000,-500.0,0.00027056,2]
[424938826,1781304640000,-283.39480316,0.00027056,2]
[424938823,1781304640000,-5132.68486864,0.00026947,2]
[424938827,1781304640000,-500.0,0.00027056,2]
[424938841,1781304640000,-1121.08025048,0.00027067,2]
[424938839,1781304640000,-212.36,0.00027057,2]
[424938838,1781304640000,-500.0,0.00027056,2]
[424938833,1781304640000,-500.0,0.00027056,2]
[424938835,1781304640000,-500.0,0.00027056,2]
[424938837,1781304640000,-500.0,0.00027056,2]
[424938831,1781304640000,-500.0,0.00027056,2]
[424938832,1781304640000,-500.0,0.00027056,2]
[424938836,1781304640000,-500.0,0.00027056,2]
[424938829,1781304640000,-500.0,0.00027056,2]
[424938830,1781304640000,-500.0,0.00027056,2]
[424938828,1781304640000,-500.0,0.00027056,2]
[424938834,1781304640000,-500.0,0.00027056,2]
[424938811,1781304640000,-211.42,0.00026027,2]
[424938921,1781304641000,-500.0,0.00035616,6]
[424938922,1781304641000,-1783.47,0.00035616,18]
[424938920,1781304641000,-1922.21,0.00035616,18]
[424938915,1781304641000,-500.0,0.00035616,18]
[424938917,1781304641000,-500.0,0.00035616,18]
[424938937,1781304641000,-500.0,0.00035616,18]
[424938916,1781304641000,-463.43129717,0.00035616,18]
[424938914,1781304641000,-500.0,0.00035616,18]
[424938912,1781304641000,-500.0,0.00035616,18]
[424938911,1781304641000,-688.22,0.00035616,18]
[424938910,1781304641000,-500.0,0.00035616,18]
[424938919,1781304641000,-624.35,0.00035616,18]
[424938913,1781304641000,-748.24,0.00035616,18]
[424938918,1781304641000,-876.35,0.00035616,18]
[424938924,1781304641000,-767.41,0.00035616,18]
[424938938,1781304641000,-500.0,0.00035616,18]
[424938927,1781304641000,-500.0,0.00035616,18]
[424938925,1781304641000,-500.0,0.00035616,18]
[424938926,1781304641000,-669.04,0.00035616,18]
[424938929,1781304641000,-500.0,0.00035616,18]
[424938928,1781304641000,-642.97,0.00035616,18]
[424938934,1781304641000,-500.0,0.00035616,18]
[424938933,1781304641000,-500.0,0.00035616,18]
[424938932,1781304641000,-1366.72,0.00035616,18]
[424938930,1781304641000,-591.72,0.00035616,18]
[424938936,1781304641000,-500.0,0.00035616,18]
[424938931,1781304641000,-500.0,0.00035616,18]
[424938939,1781304641000,-500.0,0.00035616,18]
[424938940,1781304641000,-1931.9,0.00035616,18]
[424938908,1781304641000,-734.88,0.00035616,18]
[424938923,1781304641000,-621.73,0.00035616,18]
[424938909,1781304641000,-500.0,0.00035616,18]
[424938878,1781304641000,-529.382794,0.00031674,2]
[424938905,1781304641000,-500.0,0.00035616,18]
[424938888,1781304641000,-600.0,0.00033431,30]
[424938886,1781304641000,-1639.9811221,0.00033143,2]
[424938881,1781304641000,-2076.61,0.00032876,120]
[424938885,1781304641000,-334.55718103,0.00033115,2]
[424938882,1781304641000,-217.03,0.00032877,120]
[424938884,1781304641000,-199.62626799,0.00032877,2]
[424938889,1781304641000,-185.67369648,0.00033598,2]
[424938883,1781304641000,-226.80192161,0.00032877,2]
[424938876,1781304641000,-185.67369648,0.00031133,2]
[424938877,1781304641000,-5132.68486864,0.00031265,2]
[424938941,1781304641000,-500.0,0.00035616,18]
[424938874,1781304641000,-1475.98300989,0.00030265,2]
[424938879,1781304641000,-203.43,0.00032677,2]
[424938875,1781304641000,-529.382794,0.00030572,2]
[424938880,1781304641000,-300.0,0.00032677,2]
[424938904,1781304641000,-500.0,0.00035616,18]
[424938893,1781304641000,-160.0,0.00035127,3]
[424938894,1781304641000,-5850.291558,0.000354,120]
[424938903,1781304641000,-600.0,0.00035616,18]
[424938901,1781304641000,-1040.1524,0.00035616,18]
[424938907,1781304641000,-500.0,0.00035616,18]
[424938906,1781304641000,-500.0,0.00035616,18]
[424938900,1781304641000,-5132.68486864,0.00035582,2]
[424938902,1781304641000,-10000.0,0.00035616,2]
[424938891,1781304641000,-320.09412904,0.00034814,2]
[424938896,1781304641000,-213.26000403,0.0003544,2]
[424938899,1781304641000,-151.0,0.000355,17]
[424938897,1781304641000,-384.149044,0.00035456,2]
[424938895,1781304641000,-489.7542,0.0003543,30]
[424938890,1781304641000,-360.39758544,0.00034092,2]
[424938887,1781304641000,-5132.68486864,0.00033423,2]
[424938892,1781304641000,-1001.0,0.00034849,120]
[424938898,1781304641000,-348.5288,0.000355,2]
[424938943,1781304641000,-500.0,0.00035616,18]
[424938935,1781304641000,-609.7,0.00035616,18]
[424938944,1781304641000,-500.0,0.00035616,18]
[424938982,1781304641000,-1008.06,0.00035616,18]
[424938986,1781304641000,-247.10200893,0.00035616,18]
[424938981,1781304641000,-500.0,0.00035616,18]
[424938983,1781304641000,-1202.05,0.00035616,18]
[424938989,1781304641000,-497.01789246,0.00035616,18]
[424938984,1781304641000,-500.0,0.00035616,18]
[424938985,1781304641000,-2354.58,0.00035616,18]
[424938988,1781304641000,-7667.7,0.00035616,18]
[424938991,1781304641000,-680.77,0.00035616,18]
[424938993,1781304641000,-774.19,0.00035616,18]
[424938995,1781304641000,-1117.96,0.00035616,18]
[424938992,1781304641000,-500.0,0.00035616,18]
[424938994,1781304641000,-1077.3,0.00035616,18]
[424938990,1781304641000,-984.06,0.00035616,18]
[424938996,1781304641000,-500.0,0.00035616,18]
[424938997,1781304641000,-430.0,0.00035616,120]
[424939000,1781304641000,-500.0,0.0003589,18]
[424938942,1781304641000,-1525.13,0.00035616,18]
[424939010,1781304641000,-500.0,0.0003589,18]
[424939011,1781304641000,-500.0,0.0003589,18]
[424939007,1781304641000,-500.0,0.0003589,18]
[424939006,1781304641000,-688.22,0.0003589,18]
[424939009,1781304641000,-500.0,0.0003589,18]
[424938980,1781304641000,-2212.97,0.00035616,18]
[424939005,1781304641000,-500.0,0.0003589,18]
[424939004,1781304641000,-500.0,0.0003589,18]
[424939001,1781304641000,-500.0,0.0003589,18]
[424939003,1781304641000,-734.88,0.0003589,18]
[424938999,1781304641000,-500.0,0.0003589,18]
[424939002,1781304641000,-500.0,0.0003589,18]
[424938998,1781304641000,-1040.1524,0.0003589,18]
[424939008,1781304641000,-748.24,0.0003589,18]
[424938976,1781304641000,-3718.07,0.00035616,18]
[424938987,1781304641000,-6084.02,0.00035616,18]
[424938978,1781304641000,-3489.51,0.00035616,18]
[424938956,1781304641000,-2088.38,0.00035616,18]
[424938958,1781304641000,-500.0,0.00035616,18]
[424938955,1781304641000,-1076.13,0.00035616,18]
[424938959,1781304641000,-729.56,0.00035616,18]
[424938953,1781304641000,-500.0,0.00035616,18]
[424938954,1781304641000,-500.0,0.00035616,18]
[424938957,1781304641000,-993.2,0.00035616,18]
[424938951,1781304641000,-500.0,0.00035616,18]
[424938948,1781304641000,-500.0,0.00035616,2]
[424938949,1781304641000,-500.0,0.00035616,18]
[424938947,1781304641000,-500.0,0.00035616,18]
[424938945,1781304641000,-500.0,0.00035616,18]
[424938946,1781304641000,-2682.58,0.00035616,18]
[424938979,1781304641000,-3974.97,0.00035616,18]
[424938950,1781304641000,-1444.65,0.00035616,18]
[424938961,1781304641000,-765.0,0.00035616,18]
[424938952,1781304641000,-20010.99,0.00035616,18]
[424938962,1781304641000,-500.0,0.00035616,18]
[424938977,1781304641000,-500.0,0.00035616,18]
[424938960,1781304641000,-500.0,0.00035616,18]
[424938973,1781304641000,-983.57,0.00035616,18]
[424938975,1781304641000,-1380.99,0.00035616,18]
[424938971,1781304641000,-500.0,0.00035616,2]
[424938970,1781304641000,-951.15,0.00035616,18]
[424938969,1781304641000,-931.47,0.00035616,18]
[424938972,1781304641000,-500.0,0.00035616,18]
[424938974,1781304641000,-1653.18,0.00035616,18]
[424938967,1781304641000,-500.0,0.00035616,18]
[424938968,1781304641000,-4368.19,0.00035616,18]
[424938966,1781304641000,-1515.81,0.00035616,11]
[424938965,1781304641000,-500.0,0.00035616,18]
[424938964,1781304641000,-500.0,0.00035616,18]
[424938963,1781304641000,-500.0,0.00035616,18]
[424939049,1781304642000,-1076.13,0.0003589,18]
[424939048,1781304642000,-500.0,0.0003589,18]
[424939054,1781304642000,-500.0,0.0003589,18]
[424939052,1781304642000,-500.0,0.0003589,18]
[424939055,1781304642000,-765.0,0.0003589,18]
[424939050,1781304642000,-2088.38,0.0003589,18]
[424939047,1781304642000,-301.35293394,0.0003589,18]
[424939051,1781304642000,-993.2,0.0003589,18]
[424939060,1781304642000,-1515.81,0.0003589,11]
[424939057,1781304642000,-500.0,0.0003589,18]
[424939056,1781304642000,-500.0,0.0003589,18]
[424939059,1781304642000,-500.0,0.0003589,18]
[424939058,1781304642000,-500.0,0.0003589,18]
[424939061,1781304642000,-500.0,0.0003589,18]
[424939062,1781304642000,-4368.19,0.0003589,18]
[424939064,1781304642000,-951.15,0.0003589,18]
[424939065,1781304642000,-500.0,0.0003589,2]
[424939046,1781304642000,-20010.99,0.0003589,18]
[424939053,1781304642000,-729.56,0.0003589,18]
[424939044,1781304642000,-1444.65,0.0003589,18]
[424939031,1781304642000,-500.0,0.0003589,18]
[424939042,1781304642000,-500.0,0.0003589,2]
[424939024,1781304642000,-591.72,0.0003589,18]
[424939027,1781304642000,-500.0,0.0003589,18]
[424939025,1781304642000,-500.0,0.0003589,18]
[424939026,1781304642000,-1366.72,0.0003589,18]
[424939029,1781304642000,-609.7,0.0003589,18]
[424939028,1781304642000,-500.0,0.0003589,18]
[424939063,1781304642000,-931.47,0.0003589,18]
[424939030,1781304642000,-500.0,0.0003589,18]
[424939032,1781304642000,-500.0,0.0003589,18]
[424939033,1781304642000,-500.0,0.0003589,18]
[424939034,1781304642000,-1931.9,0.0003589,18]
[424939035,1781304642000,-500.0,0.0003589,18]
[424939036,1781304642000,-1525.13,0.0003589,18]